Cogmind - Beta 13 @@@ ROGUE MODE // 2024.03.30 @ 18:07:52 Player: firstiteration Result: Destroyed by D-53 Grenadier with Mini Grenade Launcher Performance ------------- Evolutions (1) 500 Regions Visited (3) 600 Robots Destroyed (23) 115 Value Destroyed (626) 626 Prototype IDs (0) 0 Alien Tech Used (0) 0 Bonus (0) 0 TOTAL SCORE: 1841 Bonus ------- None Cogmind --------- Core Integrity 0/400 Matter 262/300 Energy 99/100 System Corruption 0% Temperature Cool (0) Movement Core (100) Ox1 Location -9/Mines Parts ------- > --- POWER (1) -------- (None) > --- PROPULSION (2) --- (None) > --- UTILITY (4) ------ Small Storage Unit Signal Interpreter > --- WEAPON (2) ------- (None) > --- INVENTORY (8) ---- Ion Engine Ion Engine Light Ion Engine Light Ion Engine Flight Unit Flight Unit Flight Unit Flight Unit Peak State ------------ > --- POWER ------------ Light Nuclear Core > --- PROPULSION ------- Aluminum Leg Aluminum Leg > --- UTILITY ---------- Small Storage Unit Signal Interpreter Seismic Detector Light Armor Plating > --- WEAPON ----------- Heavy Assault Rifle Heavy Assault Rifle > --- INVENTORY -------- Ion Engine Ion Engine Light Armor Plating Heavy Assault Rifle Heavy Assault Rifle [Rating: 13] Favorites ----------- Power Ion Engine Engine Ion Engine Power Core Light Nuclear Core Propulsion Light Treads Treads Light Treads Leg Aluminum Leg Flight Unit Flight Unit Utility Small Storage Unit Device Seismic Detector Storage Small Storage Unit Processor Signal Interpreter Protection Light Armor Plating Weapon Heavy Assault Rifle Ballistic Gun Heavy Assault Rifle Build | -11 -10 -9 -9 ------- Run | Yrd Mat Mat Min Slots Evolved 2 | . . 2 . Power . | . . . . Propulsion . | . . . . Utility 2 | . . 2 . Weapon . | . . . . Parts Attached 33 | 6 13 8 6 Power 3 | 1 1 . 1 Engine 2 | 1 . . 1 Core 1 | . 1 . . Reactor . | . . . . Propulsion 10 | 2 2 3 3 Treads 5 | 2 . 2 1 Leg 3 | . 2 1 . Wheel . | . . . . Hover . | . . . . Flight 2 | . . . 2 Utility 11 | 1 6 3 1 Device 3 | . 1 2 . Storage 3 | 1 2 . . Processor 1 | . 1 . . Hackware . | . . . . Protection 4 | . 2 1 1 Artifact . | . . . . Weapon 9 | 2 4 2 1 Energy Gun . | . . . . Energy Cannon . | . . . . Ballistic Gun 9 | 2 4 2 1 Ballistic Cannon . | . . . . Launcher . | . . . . Special Weapon . | . . . . Impact Weapon . | . . . . Slashing Weapon . | . . . . Piercing Weapon . | . . . . Special Melee Weapon . | . . . . Unidentified Prototypes . | . . . . Parts Lost 14 | . 1 6 7 Power 2 | . . . 2 Propulsion 3 | . 1 . 2 Utility 4 | . . 3 1 Weapon 5 | . . 3 2 Highest Loss Streak 6 | . 1 4 6 To Critical Strikes . | . . . . Average Slot Usage (%) 89 | . 95 96 71 Engine 8 | . 12 . 9 Core 3 | . 1 11 . Treads 15 | . 24 4 9 Leg 6 | . 2 16 . Device 4 | . 3 9 . Storage 12 | . 14 11 11 Processor 6 | . . 11 11 Protection 8 | . 7 10 8 Ballistic Gun 23 | . 27 21 20 Naked Turns . | . . . . Heaviest Build 20 | 12 19 20 17 Greatest Support 40 | 40 40 40 20 Greatest Overweight (x) 6 | . 6 . 5 Average Overweight (x) . | . . . . Largest Inventory Capacity 20 | 8 20 8 8 Average Capacity 7 | 6 8 8 8 Most Carried 8 | 5 8 8 8 Average Carried 6 | 1 6 5 7 Final Capacity 8 | 8 8 8 8 Final Carried 8 | 2 7 4 8 Class Distribution -------------------- 50% | Scavenger-Mutant 49% | Mutant Dominant Class ---------------- Mutant | -10/Materials Scavenger-Mutant | -9/Materials Scavenger-Mutant | -9/Mines Resources | -11 -10 -9 -9 ----------- Run | Yrd Mat Mat Min Matter Collected 828 | 134 230 402 62 Remotely . | . . . . Salvage Created 728 | . 306 360 62 Parts 55 | . 25 21 9 Haulers Intercepted . | . . . . Recyclers Shooed . | . . . . Parts Field Recycled . | . . . . Retrieved Matter . | . . . . Parts Self-Destructed . | . . . . Prevented . | . . . . Kills | -11 -10 -9 -9 ------- Run | Yrd Mat Mat Min Combat Hostiles Destroyed 20 | . 8 8 4 Guns 20 | . 8 8 4 Classes Destroyed 5 | . 4 1 . Worker 1 | . 1 . . Watcher 2 | . 1 1 . Swarmer 7 | . 3 . 4 Grunt 11 | . 5 6 . Sentry 2 | . . 2 . Best Kill Streak 4 | . 4 3 4 Combat Bots Only 4 | . 3 3 4 Max Kills in Single Turn 1 | . 1 1 1 Gunslinging . | . . . . Exploded . | . . . . Melee . | . . . . Uniques/NPCs Destroyed . | . . . . Combat | -11 -10 -9 -9 -------- Run | Yrd Mat Mat Min Hostile Shots Fired 195 | . 60 102 33 Missed 46 | . 16 26 4 Damage Taken 2049 | . 538 794 717 Core 453 | . 36 167 250 Absorbed by Shields . | . . . . Core Remaining (%) 92 | 100 85 . . Volleys Fired 74 | . 34 33 7 Largest 2 | . 2 2 2 Hottest 46 | . 46 46 46 Shots Fired 138 | . 68 60 10 Gun 138 | . 68 60 10 Cannon . | . . . . Launcher . | . . . . Special . | . . . . Kinetic 138 | . 68 60 10 Thermal . | . . . . Explosive . | . . . . Electromagnetic . | . . . . Robot Hit Streak 12 | . 6 12 2 Robot Miss Streak 6 | . 4 6 2 Penetration Max . | . . . . Secondary Targets 5 | . 3 2 . Max Gunslinging Chain 1 | . 1 1 . Shots Hit Robots 77 | . 39 34 4 Core Hits 31 | . 15 12 4 Critical Kills . | . . . . Critical Parts Destroyed . | . . . . Critical Strikes . | . . . . Melee Attacks . | . . . . Impact . | . . . . Slashing . | . . . . Piercing . | . . . . Sneak Attacks . | . . . . Combat Hostiles . | . . . . Follow-up Attacks . | . . . . Damage Inflicted 1252 | . 626 547 79 Guns 1252 | . 626 547 79 Cannons . | . . . . Explosions . | . . . . Melee . | . . . . Ramming . | . . . . Kinetic 1252 | . 626 547 79 Thermal . | . . . . Explosive . | . . . . Electromagnetic . | . . . . Impact . | . . . . Slashing . | . . . . Piercing . | . . . . Highest Corruption . | . . . . Average Corruption . | . . . . Corruption Purged . | . . . . Corruption Blocked . | . . . . Overload Shots . | . . . . Overflow Damage . | . . . . Projectiles . | . . . . Explosions . | . . . . Melee . | . . . . Knockbacks . | . . . . Impact . | . . . . Kinetic . | . . . . Secondary . | . . . . Self-Inflicted Damage . | . . . . Shots . | . . . . Rammed . | . . . . Targets Rammed . | . . . . Kicked . | . . . . Crushed . | . . . . Highest Temperature 94 | . 94 30 . Average Temperature 20 | . 29 8 . Received Heat Transfer 561 | . 300 261 . Siege Activations . | . . . . Robots Corrupted . | . . . . Combat Hostiles . | . . . . Parts Fried . | . . . . Impact Corruptions . | . . . . Robots Melted . | . . . . Combat Hostiles . | . . . . Parts Melted . | . . . . Heat Transferred . | . . . . Parts Sabotaged . | . . . . Parts Stolen . | . . . . Parts Stripped . | . . . . Power Chain Reactions . | . . . . Alert | -11 -10 -9 -9 ------- Run | Yrd Mat Mat Min Peak Influence 277 | . 190 277 177 Initial 92 | . . 25 92 Average 105 | . 46 160 173 Maximum Alert Level 1 | . . 1 . Low Security (%) 86 | 100 100 51 100 Level 1 13 | . . 48 . Level 2 . | . . . . Level 3 . | . . . . Level 4 . | . . . . Level 5 . | . . . . High Security . | . . . . Max Security . | . . . . Squads Dispatched 2 | . 1 1 . Investigation . | . . . . Extermination . | . . . . Reinforcement 2 | . 1 1 . Assault . | . . . . Garrison . | . . . . Intercept . | . . . . Searches Triggered . | . . . . Construction Impeded . | . . . . Haulers Reinforced . | . . . . Active Scanning Responses . | . . . . Cargo Convoy Interrupts . | . . . . Stealth | -11 -10 -9 -9 --------- Run | Yrd Mat Mat Min Distress Signals 2 | . . 2 . Communications Jammed . | . . . . Distress Signals . | . . . . Times Spotted 41 | . 13 22 6 Peak Tracking Total 9 | . 3 9 4 Tactical Retreats 1 | . . 1 . Traps | -11 -10 -9 -9 ------- Run | Yrd Mat Mat Min Traps Triggered . | . . . . Indirectly . | . . . . Trap Hack Attempts . | . . . . Triggered . | . . . . Disarmed . | . . . . Reprogrammed . | . . . . Reused . | . . . . Traps Extracted . | . . . . Installed . | . . . . Triggered . | . . . . Machines | -11 -10 -9 -9 ---------- Run | Yrd Mat Mat Min Machines Disabled 2 | . . 1 1 Max in Single Turn 1 | . . 1 1 Machines Repaired . | . . . . Machines Dismantled . | . . . . Machines Sabotaged . | . . . . Overloaded Fab Kills . | . . . . Hacking | -11 -10 -9 -9 --------- Run | Yrd Mat Mat Min Machines Accessed 2 | . 2 . . Terminals 1 | . 1 . . Fabricators . | . . . . Repair Stations 1 | . 1 . . Recycling Units . | . . . . Scanalyzers . | . . . . Garrison Access . | . . . . Total Hacks 7 | . 7 . . Successful 3 | . 3 . . Failed 3 | . 3 . . Catastrophic . | . . . . Database Lockouts 1 | . 1 . . Manual . | . . . . Terminals 5 | . 5 . . Fabricators . | . . . . Repair Stations 2 | . 2 . . Recycling Units . | . . . . Scanalyzers . | . . . . Garrison Access . | . . . . Terminal Hacks 2 | . 2 . . Record 2 | . 2 . . Fabricator Hacks . | . . . . Repair Station Hacks 1 | . 1 . . Scan Component 1 | . 1 . . Recycling Unit Hacks . | . . . . Scanalyzer . | . . . . Garrison Access Hacks . | . . . . Unauthorized Hacks . | . . . . Terminals . | . . . . Fabricators . | . . . . Repair Stations . | . . . . Recycling Units . | . . . . Scanalyzers . | . . . . Garrison Access . | . . . . Data Cores Recovered . | . . . . Used . | . . . . Hacking Detections 2 | . 2 . . Full Trace Events . | . . . . Feedback Events . | . . . . Feedback Blocked . | . . . . Robot Schematics Acquired . | . . . . Robots Built . | . . . . Authchips . | . . . . Time . | . . . . Total Robot Build Rating . | . . . . Part Schematics Acquired . | . . . . Parts Built . | . . . . Authchips . | . . . . Time . | . . . . Total Part Build Rating . | . . . . Parts Repaired . | . . . . Time . | . . . . Parts Recycled . | . . . . Recycled Matter . | . . . . Retrieved Matter . | . . . . Retrieved Components . | . . . . Parts Scanalyzed . | . . . . Part Schematics Acquired . | . . . . Parts Damaged . | . . . . Bothacking | -11 -10 -9 -9 ------------ Run | Yrd Mat Mat Min Used RIF Installer . | . . . . Robots Hacked . | . . . . Non-combat . | . . . . Combat . | . . . . Robot Hacks Applied . | . . . . Relay Couplers Released . | . . . . Fabnet Peak Effective % . | . . . . Robots Rewired . | . . . . Allies Hacked . | . . . . Hacks Repelled . | . . . . Allies | -11 -10 -9 -9 -------- Run | Yrd Mat Mat Min Total Allies . | . . . . Largest Group . | . . . . Highest-Rated Group . | . . . . Highest-Rated Ally . | . . . . Total Orders . | . . . . Ally Attacks . | . . . . Total Damage . | . . . . Kills . | . . . . Allies Corrupted . | . . . . Allies Melted . | . . . . Intel | -11 -10 -9 -9 ------- Run | Yrd Mat Mat Min Robot Analysis Total . | . . . . Derelict Logs Recovered 1 | . . . 1 Drone Launches . | . . . . Drone Recoveries . | . . . . Exploration | -11 -10 -9 -9 ------------- Run | Yrd Mat Mat Min Turns Passed 1351 | 84 573 379 315 Spaces Moved 704 | 48 279 200 177 Core 22 | 5 2 . 15 Treads 485 | 43 234 46 162 Legs 197 | . 43 154 . Wheels . | . . . . Hover . | . . . . Flight . | . . . . Fastest Speed 50 | 50 120 120 100 Average Speed 148 | 148 155 129 160 Slowest Speed 350 | 160 350 160 300 Overloaded Moves . | . . . . Propulsion Burnouts . | . . . . Robots Hopped . | . . . . Cave-ins Triggered 1 | . . . 1 Exploration Rate (%) 32 | 4 56 22 47 Regions Visited 3 Branch Regions 1 Pre-discovered Areas . | . . . . Known Exits Taken 2 | . 1 1 . Unknown Exits Taken 1 | 1 . . . Scrap Searched . | . . . . Spaces Dug . | . . . . Terrain Destroyed . | . . . . Melee . | . . . . Projectile . | . . . . AOE . | . . . . Terrain Rammed . | . . . . Walls Destroyed . | . . . . Machines Disabled . | . . . . Actions | -11 -10 -9 -9 --------- Run | Yrd Mat Mat Min Total 880 | 60 356 263 201 Wait 9 | . . 9 . Move 701 | 47 278 199 177 Hop . | . . . . Pick Up 42 | 7 19 8 8 Fast Attach 1 | 1 . . . Attach 26 | 5 9 6 6 Detach 2 | . . . 2 Swap 6 | . 4 2 . Drop 19 | . 12 6 1 Fire 74 | . 34 33 7 Melee . | . . . . Ram . | . . . . Kick . | . . . . Crush . | . . . . Escape Stasis . | . . . . Rewire . | . . . . Trap . | . . . . Miscellaneous . | . . . . Route ------- -11/Scrapyard -10/Materials (discovered 2 exits: *Mat / [*Min]) -9/Materials -9/Mines (discovered 1 exit: [*Mat]) History --------- Turn | Location | Event 9 | -11/Scrapyard | Discovered new exit (range 15) 85 | -11/Scrapyard | Entered Materials 275 | -10/Materials | Central database locked down 303 | -10/Materials | Build established: Mutant 427 | -10/Materials | Discovered new exit (range 15) 629 | -10/Materials | Discovered new exit (range 15) 647 | -10/Materials | Identified exit to Materials 658 | -10/Materials | Entered another Materials area 658 | -9/Materials | Evolved 2 slots: Utility x2 822 | -9/Materials | Discovered new exit (range 13) 837 | -9/Materials | Identified exit to Mines 983 | -9/Materials | Build established: Scavenger-Mutant 1037 | -9/Materials | Entered Mines 1051 | -9/Mines | Met a Derelict bent on vengeance 1076 | -9/Mines | Lost 6 parts (1p1n2u2w) 1279 | -9/Mines | Discovered new exit (range 11) 1283 | -9/Mines | Assembled infested the area 1295 | -9/Mines | Learned Materials security intel 1335 | -9/Mines | Core integrity fell below 50% 1341 | -9/Mines | Crushed by falling debris 1346 | -9/Mines | Core integrity fell below 20% 1352 | -9/Mines | Destroyed by D-53 Grenadier with Mini Grenade Launcher Last Messages --------------- Crushed by falling debris. [Achievement: Unlikely Earthworm] The achievement interface (ESC then open Records) offers an effective way to explore all of your earned achievements as well as seek out new goals for future runs. Hvy. Assault Rifle destroyed. Open spaces previously occupied by now-destroyed walls and earth have a slight glow to them. Consecutive moves through these unstable areas may cause a cave-in, but only if doing so for extended periods. Tunneling a short distance between rooms is safe unless the area was destabilized by an explosion. The unstable cave ceiling collapses. Lgt. Ion Engine destroyed. K-01 Serf collects debris. The unstable cave ceiling collapses. K-01 Serf collects debris. The unstable cave ceiling collapses. Map ----- +----------------------------------------------------+ | ??# #??????# #???????????? | | ??# ##?????# #???????????? | | ??# ##????# #???????????? | | ??# ##???## #???????????? | | ??## ##???# #???????????? | | ???# #???## ##???????????? | | ???## ##???####????????????? | | ????## ###########?????????? | | ?????## ##????????? | | ??????## < #????????? | | ???????### #????????? | | ?????????#### #######???###??? | | ????????????# #????????# ##?? | | ????????##### #???????# #?? | | ????????# #??????# #?? | | ????????# ### #?????? #??? | | ????????# ### ##????? ###? | | ???????## ## ##???# ? | | ??????## #### #??? | | ??????# #??? | | ??????## #???? | | ???????### ##???? | | ??????## ######??? | | ??????# ##??# ##?? | | ?????## # #??# ##? | | ?????#@ #?# #? | | ?????# d ## # | | ?????# d " | | ???? # | | ???### # ### | | ?????## # ##??? | | ??????### ##?????? | | ????????## ##????????## | | ????????# #?????????? | | ???????# ##?????????? | | ???????## ## ###??????????? | | ????????##########????????????? | | ??????????????????????????????? | | ??????????????????????????????? | | | | | | | | | | | | | | | | | | | | | | | +----------------------------------------------------+ Best States ------------- Heat Dissipation 28 Energy Generation 14 Energy Capacity 250 Matter Stores 300 Matter Capacity 300 Sight Range 16 Robot Scan Range 14 Terrain Scan Density 10 Armor Coverage 150 Evasion (%) 55 Recoil Reduction 2 Item Schematics ----------------- None Robot Schematics ------------------ None Fabricated ------------ Nothing Alien Tech Used ----------------- None Achievements -------------- Unlikely Earthworm Challenges ------------ None Game ------ Seed VariableReactionMallet Manual? 0 Play Time 00:18:10 Cumulative 1.8 hours Start 2024.03.30 @ 17:51:48 End 2024.03.30 @ 18:07:52 Sessions 1 Manual Loads 0 Difficulty Rogue Special Mode None Game No. 5 Rogue 5 Adventurer 0 Explorer 0 Win Type - Total 0 Types 0/0/0/0/0/0/0/0/0 Lore% 1 Gallery% 4 Achievement% 3 Wizard Run 0 Options --------- Layout 1 ASCII 0 Keyboard 0 Movement Mouse Keybinds 0 Fullscreen 1 Font 24/Smallcaps Map View 50x35 Zoom Use 0% Tactical HUD 0 Map Filters NONE Filters NONE Steam 1 RUN: 9650ee8b-a587-44c3-b037-9eed4ee77531